[Event "Eurasia Open Cup 2019"]
[Site "Ekaterinburg"]
[Date "2019.08.07"]
[Round "7.34"]
[White "Kavyev, Ruslan"]
[Black "Inozemtsev, Sergei"]
[Result "1-0"]
[ECO "A01"]
[WhiteElo "2167"]
[BlackElo "2295"]
[Annotator "NA"]
[PlyCount "90"]
[EventDate "2019.07.31"]
[EventType "swiss"]
[EventCountry "RUS"]
[SourceTitle "playchess.com"]
[Source "ChessBase"]
[SourceQuality "1"]
[TimeControl "5400+30"]

1. b3 {[%emt 0:00:00]} Nf6 {[%emt 0:00:00]} 2. Bb2 {[%emt 0:00:00]} e6 {[%emt 0:00:00]} 3. g3 {[%emt 0:00:00]} c5 {[%emt 0:01:26]} 4. Bg2 {[%emt 0:00:00]} Be7 {[%emt 0:01:36]} 5. Nf3 {[%emt 0:00:05]} O-O {[%emt 0:00:14]} 6. O-O {[%emt 0:00:15]} a6 {[%emt 0:03:20]} 7. c4 {[%emt 0:06:32]} b6 {[%emt 0:02:00]} 8. Qc2 {[%emt 0:01:03]} Ra7 {[%emt 0:04:21]} 9. d4 {[%emt 0:06:44]} cxd4 {[%emt 0:01:22]} 10. Nxd4 {[%emt 0:01:05]} Bb7 {[%emt 0:00:48]} 11. e4 {[%emt 0:00:00]} d6 {[%emt 0:00:43]} 12. Nc3 {[%emt 0:01:06]} Nbd7 {[%emt 0:01:07]} 13. Rad1 {[%emt 0:00:57]} Qb8 {[%emt 0:02:30]} 14. Qe2 {[%emt 0:00:44]} Re8 {[%emt 0:00:49]} 15. f4 {[%emt 0:00:59]} e5 {[%emt 0:02:40]} 16. Nf5 {[%emt 0:01:58]} exf4 {[%emt 0:03:53]} 17. Nxe7+ {[%emt 0:00:31]} Rxe7 {[%emt 0:00:06]} 18. Rxf4 {[%emt 0:00:22]} Ne8 {[%emt 0:08:25]} 19. Qc2 {[%emt 0:04:35]} b5 {[%emt 0:03:41]} 20. Nd5 {[%emt 0:01:04]} Bxd5 {[%emt 0:00:20]} 21. exd5 {[%emt 0:00:39]} Rc7 {[%emt 0:01:03]} 22. Rh4 {[%emt 0:01:09]} Nf8 {[%emt 0:00:26]} 23. Rc1 {[%emt 0:02:57]} Ng6 {[%emt 0:01:35]} 24. Re4 {[%emt 0:02:32]} bxc4 {[%emt 0:05:35]} 25. Rxc4 {[%emt 0:01:00]} Ne5 {[%emt 0:00:32]} 26. Rxc7 {[%emt 0:02:28]} Rxc7 {[%emt 0:00:18]} 27. Qe2 {[%emt 0:01:22]} Qb6+ {[%emt 0:02:58]} 28. Kh1 {[%emt 0:00:10]} Rxc1+ {[%emt 0:01:07]} 29. Bxc1 {[%emt 0:00:01]} Nf6 {[%emt 0:00:44]} 30. Be3 {[%emt 0:03:34]} Qa5 {[%emt 0:01:29]} 31. Bd4 {[%emt 0:01:06]} Nfd7 {[%emt 0:01:23]} 32. h3 {[%emt 0:01:30]} g6 {[%emt 0:01:10]} 33. Qc2 {[%emt 0:01:54]} h5 {[%emt 0:01:37]} 34. Bf2 {[%emt 0:03:42]} Nf6 {[%emt 0:01:39]} 35. Kh2 {[%emt 0:00:54]} Kh7 {[%emt 0:09:22]} 36. Qe2 {[%emt 0:15:05]} Nxd5 {[%emt 0:07:41]} 37. Be1 {[%emt 0:05:03]} Qc5 {[%emt 0:00:54]} 38. Bf2 {[%emt 0:02:01]} Qa5 {[%emt 0:00:41]} 39. a4 {[%emt 0:10:38]} Ne7 {[%emt 0:08:05]} 40. Be1 {[%emt 0:03:01]} Qb6 {[%emt 0:01:05]} 41. b4 {[%emt 0:00:00]} Nf5 {[%emt 0:01:27]} 42. Bc3 {[%emt 0:02:43]} Qc7 {[%emt 0:00:42]} 43. Bb2 {[%emt 0:03:28]} Qb6 {[%emt 0:01:53]} 44. Bc3 {[%emt 0:01:12]} Qc7 {[%emt 0:00:00]} 45. Bb2 {[%emt 0:00:03]} Qb6 {[%emt 0:00:00]} 1-0

[Event "Eurasia Open Cup 2019"]
[Site "Ekaterinburg"]
[Date "2019.08.07"]
[Round "7.35"]
[White "Matsenko, Andrei"]
[Black "Khmelev, Mikhail"]
[Result "1/2-1/2"]
[ECO "B23"]
[WhiteElo "2293"]
[BlackElo "2013"]
[Annotator "NA"]
[PlyCount "67"]
[EventDate "2019.07.31"]
[EventType "swiss"]
[EventCountry "RUS"]
[SourceTitle "playchess.com"]
[Source "ChessBase"]
[SourceQuality "1"]
[TimeControl "5400+30"]

1. e4 {[%emt 0:00:00]} c5 {[%emt 0:07:51]} 2. Nc3 {[%emt 0:01:15]} a6 {[%emt 0:00:30]} 3. g3 {[%emt 0:02:41]} b5 {[%emt 0:00:18]} 4. Bg2 {[%emt 0:00:16]} Bb7 {[%emt 0:00:05]} 5. d3 {[%emt 0:00:21]} e6 {[%emt 0:00:10]} 6. Nge2 {[%emt 0:03:10]} d6 {[%emt 0:06:38]} 7. O-O {[%emt 0:01:15]} Nd7 {[%emt 0:00:10]} 8. a4 {[%emt 0:04:53]} b4 {[%emt 0:00:40]} 9. Nb1 {[%emt 0:00:10]} a5 {[%emt 0:00:00]} 10. Nd2 {[%emt 0:01:03]} Qc7 {[%emt 0:00:00]} 11. b3 {[%emt 0:01:10]} Ngf6 {[%emt 0:00:07]} 12. Bb2 {[%emt 0:00:04]} Be7 {[%emt 0:00:06]} 13. Re1 {[%emt 0:02:44]} O-O {[%emt 0:00:09]} 14. h3 {[%emt 0:06:40]} d5 {[%emt 0:04:06]} 15. exd5 {[%emt 0:01:13]} Nxd5 {[%emt 0:00:00]} 16. Nc4 {[%emt 0:03:13]} Bf6 {[%emt 0:00:15]} 17. Bxf6 {[%emt 0:00:00]} N5xf6 {[%emt 0:01:08]} 18. Bxb7 {[%emt 0:01:38]} Qxb7 {[%emt 0:00:00]} 19. Nf4 {[%emt 0:00:15]} Nb6 {[%emt 0:00:11]} 20. Nxb6 {[%emt 0:04:13]} Qxb6 {[%emt 0:00:05]} 21. Qf3 {[%emt 0:00:57]} Rad8 {[%emt 0:00:12]} 22. g4 {[%emt 0:02:01]} Nd5 {[%emt 0:00:38]} 23. Nxd5 {[%emt 0:04:32]} Rxd5 {[%emt 0:00:14]} 24. Re3 {[%emt 0:00:25]} Qd6 {[%emt 0:00:22]} 25. Rae1 {[%emt 0:00:42]} Rd8 {[%emt 0:01:08]} 26. Qg3 {[%emt 0:00:57]} Qxg3+ {[%emt 0:00:25]} 27. Rxg3 {[%emt 0:00:05]} g5 {[%emt 0:02:10]} 28. Rge3 {[%emt 0:00:32]} Kg7 {[%emt 0:00:00]} 29. Kg2 {[%emt 0:00:54]} Rd4 {[%emt 0:00:00]} 30. Re5 {[%emt 0:01:03]} R4d5 {[%emt 0:00:09]} 31. R5e4 {[%emt 0:02:51]} Rd4 {[%emt 0:00:10]} 32. Re5 {[%emt 0:00:57]} R4d5 {[%emt 0:00:05]} 33. R5e4 {[%emt 0:01:33]} Rd4 {[%emt 0:00:07]} 34. Re5 {[%emt 0:00:06]} 1/2-1/2

[Event "Eurasia Open Cup 2019"]
[Site "Ekaterinburg"]
[Date "2019.08.07"]
[Round "7.36"]
[White "Ufimtsev, Egor"]
[Black "Semenova, Elena"]
[Result "0-1"]
[ECO "A18"]
[WhiteElo "2148"]
[BlackElo "2286"]
[Annotator "NA"]
[PlyCount "98"]
[EventDate "2019.07.31"]
[EventType "swiss"]
[EventCountry "RUS"]
[SourceTitle "playchess.com"]
[Source "ChessBase"]
[SourceQuality "1"]
[TimeControl "5400+30"]

1. c4 {[%emt 0:00:00]} Nf6 {[%emt 0:00:00]} 2. Nc3 {[%emt 0:00:00]} e6 {[%emt 0:00:00]} 3. e4 {[%emt 0:00:00]} d5 {[%emt 0:00:00]} 4. cxd5 {[%emt 0:00:01]} exd5 {[%emt 0:00:06]} 5. e5 {[%emt 0:00:00]} Ne4 {[%emt 0:00:15]} 6. Nf3 {[%emt 0:00:16]} c5 {[%emt 0:06:08]} 7. Nxe4 {[%emt 0:13:37]} dxe4 {[%emt 0:00:05]} 8. Qa4+ {[%emt 0:00:05]} Nc6 {[%emt 0:02:12]} 9. Qxe4 {[%emt 0:00:51]} Be6 {[%emt 0:00:05]} 10. Bc4 {[%emt 0:08:45]} Bxc4 {[%emt 0:12:48]} 11. Qxc4 {[%emt 0:00:05]} Qd7 {[%emt 0:00:10]} 12. O-O {[%emt 0:10:11]} Be7 {[%emt 0:06:47]} 13. b3 {[%emt 0:07:18]} g5 {[%emt 0:09:23]} 14. Bb2 {[%emt 0:19:30]} Rg8 {[%emt 0:02:28]} 15. Rfe1 {[%emt 0:06:43]} Qe6 {[%emt 0:07:53]} 16. Qxe6 {[%emt 0:12:30]} fxe6 {[%emt 0:00:04]} 17. h3 {[%emt 0:00:05]} h5 {[%emt 0:08:28]} 18. Re4 {[%emt 0:03:02]} O-O-O {[%emt 0:08:10]} 19. g4 {[%emt 0:03:47]} Rgf8 {[%emt 0:03:54]} 20. Kg2 {[%emt 0:00:35]} Nb4 {[%emt 0:06:56]} 21. d4 {[%emt 0:04:53]} Nd3 {[%emt 0:01:11]} 22. Bc1 {[%emt 0:00:07]} Rf7 {[%emt 0:09:17]} 23. Bxg5 {[%emt 0:01:12]} hxg4 {[%emt 0:08:04]} 24. hxg4 {[%emt 0:02:51]} Bxg5 {[%emt 0:02:39]} 25. Nxg5 {[%emt 0:00:06]} Rxf2+ {[%emt 0:00:08]} 26. Kg3 {[%emt 0:00:13]} Rd2 {[%emt 0:02:54]} 27. Nxe6 {[%emt 0:01:43]} Rh8 {[%emt 0:00:42]} 28. Nxc5 {[%emt 0:00:30]} Nf2 {[%emt 0:01:10]} 29. Ree1 {[%emt 0:01:27]} Rh3+ {[%emt 0:01:34]} 30. Kf4 {[%emt 0:01:17]} b6 {[%emt 0:00:34]} 31. e6 {[%emt 0:00:55]} Rxd4+ {[%emt 0:00:22]} 32. Ne4 {[%emt 0:01:57]} Nd3+ {[%emt 0:00:21]} 33. Kg5 {[%emt 0:00:03]} Rd5+ {[%emt 0:00:33]} 34. Kg6 {[%emt 0:00:31]} Nf4+ {[%emt 0:00:50]} 35. Kf7 {[%emt 0:00:33]} Rh7+ {[%emt 0:00:20]} 36. Kg8 {[%emt 0:00:02]} Re7 {[%emt 0:00:46]} 37. Rad1 {[%emt 0:00:51]} Nd3 {[%emt 0:00:27]} 38. Rf1 {[%emt 0:00:40]} Rxe6 {[%emt 0:00:22]} 39. Rf8+ {[%emt 0:00:41]} Kb7 {[%emt 0:00:09]} 40. Nf6 {[%emt 0:00:25]} Rg5+ {[%emt 0:00:30]} 41. Kh7 {[%emt 0:00:11]} Re3 {[%emt 0:00:45]} 42. Kh6 {[%emt 0:00:35]} Ra5 {[%emt 0:00:36]} 43. g5 {[%emt 0:00:34]} Rh3+ {[%emt 0:00:14]} 44. Nh5 {[%emt 0:00:43]} Rxa2 {[%emt 0:00:49]} 45. g6 {[%emt 0:01:03]} Ra5 {[%emt 0:00:25]} 46. g7 {[%emt 0:00:34]} Rhxh5+ {[%emt 0:00:43]} 47. Kg6 {[%emt 0:00:01]} Rag5+ {[%emt 0:00:25]} 48. Kf6 {[%emt 0:00:03]} Rf5+ {[%emt 0:00:25]} 49. Kg6 {[%emt 0:00:07]} Nf4# {[%emt 0:00:06]} 0-1

[Event "Eurasia Open Cup 2019"]
[Site "Ekaterinburg"]
[Date "2019.08.07"]
[Round "7.37"]
[White "Voinikonis, Nikita"]
[Black "Pogorelskikh, Sergey"]
[Result "1/2-1/2"]
[ECO "B18"]
[WhiteElo "2137"]
[BlackElo "2284"]
[Annotator "NA"]
[PlyCount "82"]
[EventDate "2019.07.31"]
[EventType "swiss"]
[EventCountry "RUS"]
[SourceTitle "playchess.com"]
[Source "ChessBase"]
[SourceQuality "1"]
[TimeControl "5400+30"]

1. e4 {[%emt 0:00:00]} c6 {[%emt 0:00:17]} 2. d4 {[%emt 0:00:00]} d5 {[%emt 0:00:00]} 3. Nd2 {[%emt 0:00:00]} dxe4 {[%emt 0:00:01]} 4. Nxe4 {[%emt 0:00:00]} Bf5 {[%emt 0:00:14]} 5. Ng3 {[%emt 0:00:13]} Bg6 {[%emt 0:00:07]} 6. Nf3 {[%emt 0:00:00]} Nd7 {[%emt 0:00:45]} 7. Bd3 {[%emt 0:00:00]} Bxd3 {[%emt 0:00:40]} 8. Qxd3 {[%emt 0:00:14]} Ngf6 {[%emt 0:01:10]} 9. O-O {[%emt 0:00:06]} e6 {[%emt 0:00:00]} 10. c4 {[%emt 0:00:00]} Bd6 {[%emt 0:00:52]} 11. b3 {[%emt 0:00:15]} O-O {[%emt 0:00:36]} 12. Bb2 {[%emt 0:00:03]} Qa5 {[%emt 0:03:51]} 13. a3 {[%emt 0:03:27]} b5 {[%emt 0:01:38]} 14. c5 {[%emt 0:17:07]} Bxg3 {[%emt 0:05:02]} 15. fxg3 {[%emt 0:00:34]} Qd8 {[%emt 0:00:36]} 16. Qc2 {[%emt 0:04:50]} Re8 {[%emt 0:02:35]} 17. Rae1 {[%emt 0:02:23]} Nf8 {[%emt 0:02:57]} 18. g4 {[%emt 0:06:15]} Nxg4 {[%emt 0:05:34]} 19. Qe4 {[%emt 0:01:18]} Nf6 {[%emt 0:02:32]} 20. Qxc6 {[%emt 0:00:41]} Qd5 {[%emt 0:01:26]} 21. Qxd5 {[%emt 0:00:39]} Nxd5 {[%emt 0:00:16]} 22. Ng5 {[%emt 0:01:30]} Nf6 {[%emt 0:08:30]} 23. d5 {[%emt 0:05:20]} exd5 {[%emt 0:00:51]} 24. Rxe8 {[%emt 0:01:15]} Rxe8 {[%emt 0:00:00]} 25. Bxf6 {[%emt 0:00:12]} gxf6 {[%emt 0:00:00]} 26. Rxf6 {[%emt 0:00:20]} Nd7 {[%emt 0:16:57]} 27. Rd6 {[%emt 0:10:04]} Nxc5 {[%emt 0:00:12]} 28. Rxd5 {[%emt 0:00:11]} Nxb3 {[%emt 0:02:31]} 29. Rxb5 {[%emt 0:00:12]} Nd4 {[%emt 0:19:28]} 30. Rb7 {[%emt 0:01:44]} Re1+ {[%emt 0:00:57]} 31. Kf2 {[%emt 0:00:13]} Re2+ {[%emt 0:00:00]} 32. Kg3 {[%emt 0:03:50]} Re3+ {[%emt 0:01:02]} 33. Kf4 {[%emt 0:02:43]} Rxa3 {[%emt 0:00:33]} 34. Nxf7 {[%emt 0:02:32]} Ra6 {[%emt 0:06:40]} 35. Ng5 {[%emt 0:04:42]} Rf6+ {[%emt 0:10:46]} 36. Ke4 {[%emt 0:02:16]} h6 {[%emt 0:04:03]} 37. Kxd4 {[%emt 0:01:12]} hxg5 {[%emt 0:00:08]} 38. Rxa7 {[%emt 0:00:35]} Rf2 {[%emt 0:00:38]} 39. Ra3 {[%emt 0:01:00]} Rxg2 {[%emt 0:00:00]} 40. Rg3 {[%emt 0:00:08]} Rxh2 {[%emt 0:00:10]} 41. Rxg5+ {[%emt 0:00:00]} Kf7 {[%emt 0:00:08]} 1/2-1/2

[Event "Eurasia Open Cup 2019"]
[Site "Ekaterinburg"]
[Date "2019.08.07"]
[Round "7.38"]
[White "Zhukov, Ivan"]
[Black "Mamatov, Melis"]
[Result "0-1"]
[ECO "B92"]
[WhiteElo "2136"]
[BlackElo "2269"]
[Annotator "NA"]
[PlyCount "102"]
[EventDate "2019.07.31"]
[EventType "swiss"]
[EventCountry "RUS"]
[SourceTitle "playchess.com"]
[Source "ChessBase"]
[SourceQuality "1"]
[TimeControl "5400+30"]

1. e4 {[%emt 0:00:00]} c5 {[%emt 0:00:00]} 2. Nf3 {[%emt 0:00:00]} d6 {[%emt 0:00:00]} 3. d4 {[%emt 0:00:00]} cxd4 {[%emt 0:00:00]} 4. Nxd4 {[%emt 0:00:00]} Nf6 {[%emt 0:00:00]} 5. Nc3 {[%emt 0:00:00]} a6 {[%emt 0:00:17]} 6. Be3 {[%emt 0:00:17]} e5 {[%emt 0:00:21]} 7. Nb3 {[%emt 0:00:09]} Be6 {[%emt 0:00:56]} 8. Be2 {[%emt 0:02:53]} Be7 {[%emt 0:01:22]} 9. Qd2 {[%emt 0:00:19]} b5 {[%emt 0:01:30]} 10. f3 {[%emt 0:01:04]} Nbd7 {[%emt 0:02:59]} 11. O-O {[%emt 0:01:52]} Nb6 {[%emt 0:01:57]} 12. Na5 {[%emt 0:08:44]} Qc7 {[%emt 0:02:30]} 13. a4 {[%emt 0:03:00]} d5 {[%emt 0:03:03]} 14. Bxb5+ {[%emt 0:03:34]} Kf8 {[%emt 0:04:55]} 15. Bc6 {[%emt 0:11:24]} d4 {[%emt 0:02:20]} 16. Bh6 {[%emt 0:11:00]} Rg8 {[%emt 0:23:56]} 17. Ne2 {[%emt 0:18:53]} gxh6 {[%emt 0:08:11]} 18. Bxa8 {[%emt 0:00:55]} Nxa8 {[%emt 0:00:17]} 19. Nb3 {[%emt 0:00:48]} Nb6 {[%emt 0:02:45]} 20. Qa5 {[%emt 0:05:57]} Qxc2 {[%emt 0:08:42]} 21. Qxb6 {[%emt 0:00:13]} Qxb3 {[%emt 0:00:51]} 22. Qxb3 {[%emt 0:03:06]} Bxb3 {[%emt 0:01:16]} 23. Rfc1 {[%emt 0:00:01]} d3 {[%emt 0:03:12]} 24. Nc3 {[%emt 0:04:14]} Bc5+ {[%emt 0:03:31]} 25. Kf1 {[%emt 0:00:10]} d2 {[%emt 0:00:13]} 26. Rd1 {[%emt 0:00:05]} Bc4+ {[%emt 0:06:48]} 27. Ne2 {[%emt 0:00:09]} Bxe2+ {[%emt 0:00:53]} 28. Kxe2 {[%emt 0:00:02]} Rxg2+ {[%emt 0:00:00]} 29. Kd3 {[%emt 0:00:49]} Nh5 {[%emt 0:01:27]} 30. Rxd2 {[%emt 0:00:00]} Nf4+ {[%emt 0:00:05]} 31. Kc2 {[%emt 0:00:21]} Ne2 {[%emt 0:01:50]} 32. Kd3 {[%emt 0:00:53]} Nf4+ {[%emt 0:00:27]} 33. Kc2 {[%emt 0:00:02]} Rg6 {[%emt 0:00:28]} 34. Rad1 {[%emt 0:01:43]} Bd4 {[%emt 0:01:47]} 35. Kb1 {[%emt 0:01:07]} Rb6 {[%emt 0:00:27]} 36. Ka2 {[%emt 0:00:50]} h5 {[%emt 0:03:06]} 37. Rb1 {[%emt 0:01:51]} Rb4 {[%emt 0:00:54]} 38. b3 {[%emt 0:00:45]} h4 {[%emt 0:00:18]} 39. Rc1 {[%emt 0:00:00]} Ne6 {[%emt 0:01:37]} 40. Rc6 {[%emt 0:00:32]} a5 {[%emt 0:00:21]} 41. Ra6 {[%emt 0:01:57]} Nc5 {[%emt 0:01:35]} 42. Rxa5 {[%emt 0:00:17]} Nxb3 {[%emt 0:00:27]} 43. Ra8+ {[%emt 0:00:00]} Ke7 {[%emt 0:00:22]} 44. Rc2 {[%emt 0:00:06]} Nc5 {[%emt 0:00:29]} 45. Rg2 {[%emt 0:02:42]} h3 {[%emt 0:02:50]} 46. Rgg8 {[%emt 0:00:54]} Rb2+ {[%emt 0:02:21]} 47. Ka3 {[%emt 0:00:00]} Rxh2 {[%emt 0:00:00]} 48. Rh8 {[%emt 0:01:42]} Rh1 {[%emt 0:01:11]} 49. Rxh7 {[%emt 0:00:09]} Bc3 {[%emt 0:00:38]} 50. Ra7+ {[%emt 0:00:56]} Ke6 {[%emt 0:01:22]} 51. Rh6+ {[%emt 0:01:10]} f6 {[%emt 0:00:00]} 0-1

[Event "Eurasia Open Cup 2019"]
[Site "Ekaterinburg"]
[Date "2019.08.07"]
[Round "7.39"]
[White "Tsybikov, Tumen"]
[Black "Trukhin, Dmitry"]
[Result "1-0"]
[ECO "B90"]
[WhiteElo "2281"]
[BlackElo "1976"]
[Annotator "NA"]
[PlyCount "99"]
[EventDate "2019.07.31"]
[EventType "swiss"]
[EventCountry "RUS"]
[SourceTitle "playchess.com"]
[Source "ChessBase"]
[SourceQuality "1"]
[TimeControl "5400+30"]

1. e4 {[%emt 0:00:00]} c5 {[%emt 0:03:00]} 2. Nf3 {[%emt 0:00:00]} d6 {[%emt 0:00:04]} 3. d4 {[%emt 0:00:00]} cxd4 {[%emt 0:00:05]} 4. Nxd4 {[%emt 0:00:00]} Nf6 {[%emt 0:00:07]} 5. Nc3 {[%emt 0:00:00]} a6 {[%emt 0:00:03]} 6. h3 {[%emt 0:00:00]} e5 {[%emt 0:00:20]} 7. Nde2 {[%emt 0:00:00]} h5 {[%emt 0:00:29]} 8. Bg5 {[%emt 0:00:00]} Be6 {[%emt 0:00:13]} 9. Bxf6 {[%emt 0:00:00]} Qxf6 {[%emt 0:00:44]} 10. Nd5 {[%emt 0:00:26]} Qd8 {[%emt 0:00:00]} 11. Qd3 {[%emt 0:00:00]} Nd7 {[%emt 0:00:01]} 12. O-O-O {[%emt 0:01:15]} Nc5 {[%emt 0:00:10]} 13. Qf3 {[%emt 0:06:44]} b5 {[%emt 0:00:19]} 14. Kb1 {[%emt 0:01:51]} Rb8 {[%emt 0:03:26]} 15. Nc1 {[%emt 0:08:57]} Bxd5 {[%emt 0:07:13]} 16. Rxd5 {[%emt 0:00:11]} Ne6 {[%emt 0:00:07]} 17. h4 {[%emt 0:09:57]} Qc7 {[%emt 0:05:03]} 18. Nb3 {[%emt 0:02:49]} Rc8 {[%emt 0:00:40]} 19. c3 {[%emt 0:02:23]} Qb6 {[%emt 0:03:02]} 20. g3 {[%emt 0:05:52]} Be7 {[%emt 0:10:38]} 21. Bh3 {[%emt 0:04:00]} Rc6 {[%emt 0:07:28]} 22. Bxe6 {[%emt 0:13:22]} fxe6 {[%emt 0:00:54]} 23. Rdd1 {[%emt 0:03:33]} g6 {[%emt 0:02:04]} 24. Qe2 {[%emt 0:00:48]} Rf8 {[%emt 0:00:28]} 25. Rhf1 {[%emt 0:01:16]} Kd7 {[%emt 0:03:23]} 26. f4 {[%emt 0:02:39]} b4 {[%emt 0:00:36]} 27. c4 {[%emt 0:03:32]} Kc7 {[%emt 0:05:51]} 28. fxe5 {[%emt 0:03:11]} Rxf1 {[%emt 0:01:06]} 29. Qxf1 {[%emt 0:03:33]} Kb7 {[%emt 0:04:50]} 30. Qf7 {[%emt 0:05:40]} Qc7 {[%emt 0:05:25]} 31. Qxg6 {[%emt 0:04:28]} dxe5 {[%emt 0:01:01]} 32. Qxh5 {[%emt 0:02:39]} Rd6 {[%emt 0:00:09]} 33. Rxd6 {[%emt 0:01:05]} Qxd6 {[%emt 0:00:06]} 34. Kc2 {[%emt 0:01:29]} Qc7 {[%emt 0:00:23]} 35. Qf7 {[%emt 0:02:33]} Qxc4+ {[%emt 0:02:49]} 36. Kd2 {[%emt 0:00:37]} Qc7 {[%emt 0:00:15]} 37. Qxe6 {[%emt 0:00:00]} Kb8 {[%emt 0:04:05]} 38. Qxa6 {[%emt 0:00:45]} Qd7+ {[%emt 0:00:15]} 39. Qd3 {[%emt 0:01:46]} Qh3 {[%emt 0:00:24]} 40. Na5 {[%emt 0:00:54]} Kc7 {[%emt 0:04:07]} 41. Kc2 {[%emt 0:00:39]} Bc5 {[%emt 0:03:17]} 42. Qd5 {[%emt 0:00:56]} Bd4 {[%emt 0:01:22]} 43. Qf7+ {[%emt 0:01:06]} Kb6 {[%emt 0:01:45]} 44. Nc4+ {[%emt 0:00:33]} Kc6 {[%emt 0:01:06]} 45. Nxe5+ {[%emt 0:00:59]} Kb6 {[%emt 0:01:02]} 46. Qf6+ {[%emt 0:01:14]} Ka5 {[%emt 0:02:24]} 47. Nc4+ {[%emt 0:00:30]} Kb5 {[%emt 0:00:00]} 48. Qxd4 {[%emt 0:00:08]} Qg2+ {[%emt 0:00:17]} 49. Nd2 {[%emt 0:00:07]} b3+ {[%emt 0:00:00]} 50. axb3 {[%emt 0:00:05]} 1-0

[Event "Eurasia Open Cup 2019"]
[Site "Ekaterinburg"]
[Date "2019.08.07"]
[Round "7.40"]
[White "Grebnev, Aleksey"]
[Black "Klukin, Kirill"]
[Result "0-1"]
[ECO "A45"]
[WhiteElo "2093"]
[BlackElo "2325"]
[Annotator "NA"]
[PlyCount "58"]
[EventDate "2019.07.31"]
[EventType "swiss"]
[EventCountry "RUS"]
[SourceTitle "playchess.com"]
[Source "ChessBase"]
[SourceQuality "1"]
[TimeControl "5400+30"]

1. d4 {[%emt 0:00:00]} Nf6 {[%emt 0:00:00]} 2. Bf4 {[%emt 0:00:00]} c5 {[%emt 0:00:31]} 3. e3 {[%emt 0:00:41]} Qb6 {[%emt 0:00:30]} 4. b3 {[%emt 0:00:10]} e6 {[%emt 0:02:54]} 5. Nf3 {[%emt 0:00:14]} Nc6 {[%emt 0:01:00]} 6. c3 {[%emt 0:00:16]} Nh5 {[%emt 0:13:51]} 7. Bg5 {[%emt 0:00:50]} h6 {[%emt 0:00:36]} 8. Bh4 {[%emt 0:00:15]} g5 {[%emt 0:05:13]} 9. Nfd2 {[%emt 0:00:26]} Ng7 {[%emt 0:07:24]} 10. Bg3 {[%emt 0:01:38]} cxd4 {[%emt 0:00:36]} 11. exd4 {[%emt 0:01:06]} Nf5 {[%emt 0:01:07]} 12. Bd3 {[%emt 0:00:45]} Nxg3 {[%emt 0:00:27]} 13. hxg3 {[%emt 0:00:05]} d5 {[%emt 0:00:15]} 14. Nf3 {[%emt 0:00:36]} Bg7 {[%emt 0:00:15]} 15. O-O {[%emt 0:01:47]} Bd7 {[%emt 0:00:25]} 16. Nbd2 {[%emt 0:00:21]} O-O-O {[%emt 0:00:30]} 17. a4 {[%emt 0:01:41]} Kb8 {[%emt 0:07:43]} 18. b4 {[%emt 0:01:27]} g4 {[%emt 0:13:36]} 19. Nh2 {[%emt 0:00:15]} e5 {[%emt 0:03:51]} 20. dxe5 {[%emt 0:00:30]} Nxe5 {[%emt 0:02:29]} 21. Be2 {[%emt 0:01:59]} h5 {[%emt 0:00:34]} 22. Nb3 {[%emt 0:02:04]} h4 {[%emt 0:05:24]} 23. Nc5 {[%emt 0:04:29]} hxg3 {[%emt 0:04:48]} 24. fxg3 {[%emt 0:00:10]} f5 {[%emt 0:02:48]} 25. Qd2 {[%emt 0:01:39]} Bc8 {[%emt 0:03:56]} 26. Rfe1 {[%emt 0:01:33]} d4 {[%emt 0:03:21]} 27. a5 {[%emt 0:03:54]} Qc7 {[%emt 0:01:02]} 28. Nf1 {[%emt 0:01:13]} dxc3 {[%emt 0:00:38]} 29. Qc2 {[%emt 0:00:28]} Nc6 {[%emt 0:00:29]} 0-1

[Event "Eurasia Open Cup 2019"]
[Site "Ekaterinburg"]
[Date "2019.08.07"]
[Round "7.41"]
[White "Abramov, Ilya"]
[Black "Pozin, Sergey"]
[Result "0-1"]
[ECO "E71"]
[WhiteElo "2065"]
[BlackElo "2299"]
[Annotator "NA"]
[PlyCount "54"]
[EventDate "2019.07.31"]
[EventType "swiss"]
[EventCountry "RUS"]
[SourceTitle "playchess.com"]
[Source "ChessBase"]
[SourceQuality "1"]
[TimeControl "5400+30"]

1. d4 {[%emt 0:00:00]} Nf6 {[%emt 0:04:50]} 2. c4 {[%emt 0:00:00]} g6 {[%emt 0:01:05]} 3. Nc3 {[%emt 0:00:00]} Bg7 {[%emt 0:00:05]} 4. e4 {[%emt 0:00:00]} O-O {[%emt 0:00:25]} 5. h3 {[%emt 0:00:53]} c5 {[%emt 0:00:20]} 6. d5 {[%emt 0:00:11]} d6 {[%emt 0:01:00]} 7. Bg5 {[%emt 0:01:30]} e6 {[%emt 0:03:57]} 8. Bd3 {[%emt 0:00:10]} exd5 {[%emt 0:01:24]} 9. exd5 {[%emt 0:00:41]} Re8+ {[%emt 0:02:26]} 10. Kf1 {[%emt 0:00:15]} h6 {[%emt 0:03:33]} 11. Bd2 {[%emt 0:00:40]} a6 {[%emt 0:02:31]} 12. a4 {[%emt 0:01:17]} Nbd7 {[%emt 0:01:21]} 13. Nf3 {[%emt 0:00:15]} Ne5 {[%emt 0:06:53]} 14. Nxe5 {[%emt 0:00:46]} dxe5 {[%emt 0:01:30]} 15. Be3 {[%emt 0:02:17]} b6 {[%emt 0:07:21]} 16. g4 {[%emt 0:03:17]} e4 {[%emt 0:01:02]} 17. Be2 {[%emt 0:00:37]} Nd7 {[%emt 0:00:30]} 18. Qd2 {[%emt 0:11:10]} Qh4 {[%emt 0:01:16]} 19. Kg2 {[%emt 0:02:20]} f5 {[%emt 0:04:04]} 20. gxf5 {[%emt 0:09:13]} Ne5 {[%emt 0:05:10]} 21. a5 {[%emt 0:14:02]} Nf3 {[%emt 0:01:33]} 22. Qd1 {[%emt 0:00:46]} Bxf5 {[%emt 0:02:53]} 23. axb6 {[%emt 0:01:45]} Bd4 {[%emt 0:01:01]} 24. Na4 {[%emt 0:18:31]} Re5 {[%emt 0:00:57]} 25. Qc1 {[%emt 0:10:43]} Bd7 {[%emt 0:08:44]} 26. Bd1 {[%emt 0:02:48]} Rg5+ {[%emt 0:02:47]} 27. Kf1 {[%emt 0:00:31]} Qxh3+ {[%emt 0:00:06]} 0-1